fUSD/lending_fUSD_20260430
["ID","MTS","AMOUNT","RATE_DAILY","PERIOD"]
[421383759,1777537847000,-753253.36837303,0.0001166,2]
[421383787,1777538024000,484.19,0.00030137,120]
[421383788,1777538056000,484.19,0.00030137,120]
[421383789,1777538151000,4765.80536672,0.0003012,120]
[421383790,1777538690000,500.0,0.00030099,120]
[421383791,1777538704000,-1155.0,9.999e-05,2]
[421383792,1777538704000,-256.24277034,9.999e-05,2]
[421383793,1777538707000,-221.57152307,9.999e-05,2]
[421383794,1777538711000,-500.0,9.999e-05,2]
[421383813,1777539031000,-500.0,0.00010599,2]
[421383812,1777539031000,-500.0,0.00010599,2]
[421383807,1777539031000,-500.0,0.00010599,2]
[421383806,1777539031000,-500.0,0.00010599,2]
[421383805,1777539031000,-485.96917744,0.00010599,2]
[421383803,1777539031000,-2000.0,0.00010258,2]
[421383811,1777539031000,-500.0,0.00010599,2]
[421383804,1777539031000,-158.61670949,0.00010599,2]
[421383800,1777539031000,-150.72256054,0.0001,2]
[421383798,1777539031000,-176.99391479,0.0001,2]
[421383797,1777539031000,-250.0,0.0001,2]
[421383795,1777539031000,-344.22315239,9.99e-05,2]
[421383796,1777539031000,-222.0,9.999e-05,2]
[421383802,1777539031000,-209.45568013,0.00010245,2]
[421383815,1777539031000,-267.1619909,0.00010599,2]
[421383801,1777539031000,-150.72256054,0.0001,2]
[421383818,1777539031000,-500.0,0.00010599,2]
[421383816,1777539031000,-500.0,0.00010599,2]
[421383827,1777539031000,-500.0,0.00010599,2]
[421383820,1777539031000,-500.0,0.00010599,2]
[421383828,1777539031000,-500.0,0.00010599,2]
[421383825,1777539031000,-500.0,0.00010599,2]
[421383826,1777539031000,-500.0,0.00010599,2]
[421383823,1777539031000,-500.0,0.00010599,2]
[421383822,1777539031000,-500.0,0.00010599,2]
[421383799,1777539031000,-11368.40616636,0.0001,2]
[421383810,1777539031000,-500.0,0.00010599,2]
[421383824,1777539031000,-500.0,0.00010599,2]
[421383819,1777539031000,-500.0,0.00010599,2]
[421383814,1777539031000,-500.0,0.00010599,2]
[421383817,1777539031000,-500.0,0.00010599,2]
[421383809,1777539031000,-500.0,0.00010599,2]
[421383808,1777539031000,-500.0,0.00010599,2]
[421383821,1777539031000,-500.0,0.00010599,2]
[421383830,1777539032000,-500.0,0.00010599,2]
[421383829,1777539032000,-500.0,0.00010599,2]
[421383833,1777539032000,-47175.23876191,0.000106,2]
[421383832,1777539032000,-12688.15187296,0.000106,2]
[421383834,1777539032000,-494.97495455,0.000106,2]
[421383831,1777539032000,-500.0,0.00010599,2]
[421383842,1777539037000,-380.52932165,0.000106,2]
[421383845,1777539038000,-273.08417687,0.000106,2]
[421383843,1777539038000,-3977.17419144,0.000106,2]
[421383846,1777539038000,-7811.13580837,0.000106,2]
[421383847,1777539039000,-1158.45634641,0.000106,2]
[421383849,1777539039000,-334.02485,0.000106,2]
[421383850,1777539039000,-8619.67861961,0.000106,2]
[421383848,1777539039000,-310.55827694,0.000106,2]
[421383860,1777539040000,-644.20590704,0.000106,2]
[421383893,1777539043000,-250.0,0.00010989,2]
[421383881,1777539043000,-1138.92,0.000107,2]
[421383878,1777539043000,-176.08,0.00010699,2]
[421383880,1777539043000,-900.0,0.000107,3]
[421383879,1777539043000,-42416.01312791,0.000107,2]
[421383876,1777539043000,-895379.47177954,0.000106,2]
[421383877,1777539043000,-1608.421,0.00010699,2]
[421383873,1777539043000,-22810.97335355,0.000106,2]
[421383874,1777539043000,-76139.99999999,0.000106,2]
[421383875,1777539043000,-2389.51214753,0.000106,2]
[421383869,1777539043000,-6031.22780141,0.000106,2]
[421383871,1777539043000,-900.05641542,0.000106,2]
[421383870,1777539043000,-266225.32068734,0.000106,2]
[421383872,1777539043000,-3303.77802747,0.000106,2]
[421383895,1777539043000,-166.73,0.0001105,2]
[421383894,1777539043000,-250.0,0.00010999,2]
[421383882,1777539043000,-1139.97,0.000107,2]
[421383899,1777539043000,-166.66,0.00011288,2]
[421383900,1777539043000,-11264.8133534,0.00011297,2]
[421383901,1777539043000,-232.6138631,0.00011297,2]
[421383902,1777539043000,-506656.42608108,0.00011297,2]
[421383884,1777539043000,-20122.33,0.000107,2]
[421383896,1777539043000,-166.66,0.00011068,2]
[421383897,1777539043000,-166.66,0.00011178,2]
[421383898,1777539043000,-500.0,0.00011273,2]
[421383892,1777539043000,-166.66,0.00010959,2]
[421383889,1777539043000,-2900.0,0.000109,3]
[421383888,1777539043000,-1900.0,0.000108,3]
[421383887,1777539043000,-500.0,0.0001074,2]
[421383890,1777539043000,-160.08527114,0.00010918,21]
[421383886,1777539043000,-192.0,0.00010713,2]
[421383891,1777539043000,-503.0,0.00010932,2]
[421383907,1777539046000,-2300.0,0.00011297,2]
[421383906,1777539046000,-155208.99999999,0.00011297,2]
[421383905,1777539046000,-5590.0,0.00011297,2]
[421383904,1777539046000,-1009.5,0.00011297,2]
[421383903,1777539046000,-206.5,9.778e-05,2]
[421383942,1777539063000,600.0,0.0001061,54]
[421383941,1777539063000,600.0,0.00011662,54]
[421383944,1777539063000,600.0,0.00010888,54]
[421383945,1777539063000,669.90325708,0.00010888,54]
[421383943,1777539063000,600.0,0.00010888,54]
[421383946,1777539101000,1328.0,0.0003013,120]
[421383947,1777539102000,566.0,0.0003013,120]
[421383948,1777539103000,1666.0,0.0003013,120]
[421383949,1777539105000,272.0,0.0003013,120]
[421383950,1777539106000,151.0,0.0003013,120]
[421383951,1777539123000,1159.31,0.00021,120]
[421383954,1777539164000,1766.0,0.0003013,120]
[421383955,1777539166000,200.0,0.0003013,120]
[421383962,1777539259000,383.9,0.00030137,120]
[421383966,1777539302000,173.0,0.00029206,120]
[421383969,1777539514000,203.6867256,0.0003013,120]
[421383970,1777539604000,175.0,0.00029254,120]
[421383975,1777539781000,150.0,0.00011233,120]
[421383978,1777539918000,-150.0,9.345e-05,2]
[421383979,1777539918000,-150.0,9.345e-05,2]
[421383985,1777539919000,-150.0,9.444e-05,2]
[421383984,1777539919000,-150.0,9.345e-05,2]
[421383986,1777539919000,-0.08754009,9.461e-05,2]
[421383983,1777539919000,-150.0,9.345e-05,2]
[421383981,1777539919000,-150.0,9.345e-05,2]
[421383982,1777539919000,-150.8369207,9.345e-05,2]
[421383980,1777539919000,-150.38343609,9.345e-05,2]
[421383988,1777539922000,-128.43161314,9.461e-05,2]
[421383987,1777539922000,-150.0,9.345e-05,2]
[421383989,1777539933000,-150.0,9.345e-05,2]
[421383990,1777539933000,-150.0,9.345e-05,2]
[421383992,1777539934000,-150.0,9.428e-05,2]
[421383993,1777539934000,-10.98238958,9.461e-05,2]
[421383991,1777539934000,-150.0,9.387e-05,2]
[421383994,1777540026000,800.0,9.7e-05,3]
[421383995,1777540029000,1600.0,9.8e-05,3]
[421383996,1777540031000,2500.0,9.9e-05,3]
[421383997,1777540033000,3300.0,0.0001,3]
[421383998,1777540144000,-164.68063555,8.909e-05,2]
[421384000,1777540147000,-10.49845719,9.461e-05,2]
[421383999,1777540147000,-63.98936445,8.909e-05,2]
[421384001,1777540147000,-150.0,9.47e-05,2]
[421384003,1777540147000,-150.0,9.553e-05,2]
[421384004,1777540147000,-150.0,9.576e-05,2]
[421384005,1777540147000,-150.0,9.594e-05,2]
[421384002,1777540147000,-150.0,9.511e-05,2]
[421384008,1777540147000,-150.0,9.691e-05,2]
[421384007,1777540147000,-150.0,9.677e-05,2]
[421384009,1777540147000,-150.0,9.719e-05,2]
[421384010,1777540147000,-150.0,9.761e-05,2]
[421384011,1777540147000,-150.0,9.794e-05,2]
[421384012,1777540147000,-150.0,9.802e-05,2]
[421384013,1777540147000,-150.0,9.807e-05,2]
[421384006,1777540147000,-150.0,9.636e-05,2]
[421384021,1777540148000,-273.85732401,0.0001,2]
[421384022,1777540148000,-299.61839068,0.00010007,2]
[421384019,1777540148000,-150.0,9.927e-05,2]
[421384016,1777540148000,-150.0,9.864e-05,2]
[421384014,1777540148000,-299.61839068,9.807e-05,2]
[421384017,1777540148000,-150.0,9.885e-05,2]
[421384015,1777540148000,-150.0,9.844e-05,2]
[421384018,1777540148000,-150.0,9.922e-05,2]
[421384023,1777540148000,-150.0,0.0001001,2]
[421384025,1777540148000,-150.0,0.00010037,2]
[421384024,1777540148000,-300.0,0.00010037,2]
[421384020,1777540148000,-150.0,9.968e-05,2]
[421384032,1777540148000,-150.0,0.00010176,2]
[421384030,1777540148000,-150.0,0.00010143,2]
[421384033,1777540148000,-168.60739694,0.00010208,2]
[421384031,1777540148000,-150.0,0.00010153,2]
[421384028,1777540148000,-150.0,0.00010093,2]
[421384026,1777540148000,-150.0,0.00010037,2]
[421384027,1777540148000,-150.0,0.00010051,2]
[421384029,1777540148000,-150.0,0.00010134,2]
[421384034,1777540166000,152.0,9.979e-05,7]
[421384035,1777540167000,152.0,9.979e-05,7]
[421384056,1777540232000,-150.0,0.00010268,2]
[421384083,1777540232000,-300.0,0.00010396,2]
[421384070,1777540232000,-150.0,0.00010342,2]
[421384066,1777540232000,-153.98321671,0.00010307,2]
[421384068,1777540232000,-299.61839068,0.00010307,2]
[421384047,1777540232000,-153.6,9.763e-05,2]
[421384060,1777540232000,-214.678,0.00010289,2]
[421384053,1777540232000,-150.0,0.00010259,2]
[421384064,1777540232000,-150.0,0.000103,2]
[421384049,1777540232000,-1831.39260306,0.00010208,2]
[421384062,1777540232000,-1668.665,0.00010289,2]
[421384058,1777540232000,-250.80628055,0.00010269,2]
[421384085,1777540232000,-290.0,0.00010396,2]
[421384051,1777540232000,-150.0,0.00010217,2]
[421384072,1777540232000,-1200.0,0.00010383,2]
[421384096,1777540232000,-760.0,0.00010399,2]
[421384089,1777540232000,-418.57355455,0.00010398,2]
[421384079,1777540232000,-150.0,0.00010384,2]
[421384098,1777540232000,-59951.35902025,0.00010399,2]
[421384097,1777540232000,-606.34868019,0.00010399,2]
[421384094,1777540232000,-3200.68995036,0.00010399,2]
[421384092,1777540232000,-65418.84162443,0.00010399,2]
[421384093,1777540232000,-902.0,0.00010399,2]
[421384095,1777540232000,-11212.10376662,0.00010399,2]
[421384081,1777540232000,-150.0,0.00010384,2]
[421384091,1777540232000,-610.98238958,0.00010398,3]
[421384087,1777540232000,-500.0,0.00010398,2]
[421384090,1777540232000,-340.1784242,0.00010398,2]
[421384074,1777540232000,-150.0,0.00010384,2]
[421384076,1777540232000,-150.0,0.00010384,2]
[421384088,1777540232000,-500.0,0.00010398,2]
[421384104,1777540238000,-178199.63565147,0.00010399,2]
[421384102,1777540238000,-507.71285999,0.00010399,2]
[421384101,1777540238000,-252.44778854,0.00010399,2]
[421384105,1777540238000,-93493.20609111,0.00010399,2]
[421384109,1777540238000,-380.52932165,0.00010399,2]
[421384106,1777540238000,-164045.53314445,0.00010399,2]
[421384107,1777540238000,-45802.157581,0.00010399,2]
[421384108,1777540238000,-14670.91619738,0.00010399,2]
[421384110,1777540238000,-6149.7,0.00010399,2]
[421384103,1777540238000,-579.25293646,0.00010399,2]
[421384143,1777540240000,-384.01,0.00010399,2]
[421384142,1777540240000,-270.00005,0.00010399,2]
[421384144,1777540240000,-1463.02402454,0.00010399,2]
[421384145,1777540240000,-401.9924952,0.00010399,2]
[421384147,1777540240000,-253.24101467,0.00010399,2]
[421384148,1777540240000,-67367.73954015,0.00010399,2]
[421384150,1777540240000,-19597.93006533,0.00010399,2]
[421384146,1777540240000,-5309.20718963,0.00010399,2]
[421384149,1777540240000,-44459.1386239,0.00010399,2]
[421384157,1777540246000,-5734.12045807,0.00010399,2]
[421384156,1777540246000,-1623.30494545,0.00010399,2]
[421384154,1777540246000,-2656.61977035,0.00010399,2]
[421384155,1777540246000,-6699.99999997,0.00010399,2]
[421384153,1777540246000,-50766.3098969,0.00010399,2]
[421384152,1777540246000,-3892.5,0.00010399,2]
[421384170,1777540247000,-300.0,0.00010399,2]
[421384169,1777540247000,-9473.02664647,0.00010399,2]
[421384167,1777540247000,-378858.00000034,0.00010399,2]
[421384168,1777540247000,-656.10363373,0.00010399,2]
[421384166,1777540247000,-2909.49763448,0.00010399,2]
[421384171,1777540247000,-240246.23075254,0.00010399,2]
[421384177,1777540685000,150.0,0.00011233,120]
[421384179,1777541034000,300.0,0.0003,120]
[421384180,1777541251000,2026.93459155,0.0002,120]
[421384181,1777541253000,475.9563593,0.0003013,120]
[421384182,1777541406000,173.0,0.00023178,120]
[421384183,1777541408000,173.0,0.00024337,120]
[421384184,1777541409000,173.0,0.00025554,120]
[421384197,1777541432000,-1200.0,0.00010799,2]
[421384198,1777541432000,-150.0,0.000108,2]
[421384205,1777541432000,-150.0,0.000108,2]
[421384193,1777541432000,-1641.76767239,0.00010682,2]
[421384191,1777541432000,-604.23062204,0.00010546,2]
[421384196,1777541432000,-300.0,0.00010799,2]
[421384194,1777541432000,-223.85,0.00010792,2]
[421384192,1777541432000,-152.0,0.00010555,7]
[421384188,1777541432000,-2000.0,0.00010349,2]
[421384189,1777541432000,-152.0,0.00010501,7]
[421384186,1777541432000,-45.476206,0.00010121,2]
[421384187,1777541432000,-500.0,0.00010199,2]
[421384185,1777541432000,-282.203794,0.00010121,2]
[421384190,1777541432000,-152.0,0.00010513,7]
[421384204,1777541432000,-148.74450043,0.000108,2]
[421384195,1777541432000,-225.42,0.00010792,2]
[421384200,1777541432000,-150.0,0.000108,2]
[421384199,1777541432000,-150.0,0.000108,2]
[421384220,1777541432000,-283.36160871,0.0001107,2]
[421384221,1777541432000,-1447.79430513,0.00011071,2]
[421384219,1777541432000,-150.0,0.0001107,2]
[421384217,1777541432000,-166.66,0.00011068,2]
[421384216,1777541432000,-153.6,0.00010983,2]
[421384215,1777541432000,-166.66,0.00010959,2]
[421384218,1777541432000,-201.98,0.0001107,2]
[421384210,1777541432000,-172.35579728,0.00010932,2]
[421384208,1777541432000,-150.0,0.000108,2]
[421384202,1777541432000,-150.0,0.000108,2]
[421384203,1777541432000,-1.25549957,0.000108,2]
[421384201,1777541432000,-150.0,0.000108,2]
[421384207,1777541432000,-150.0,0.000108,2]
[421384206,1777541432000,-150.0,0.000108,2]
[421384214,1777541432000,-327.64420272,0.00010932,2]
[421384242,1777541438000,-238.12489694,0.0001107,2]
[421384241,1777541438000,-500.0,0.00010904,2]
[421384240,1777541438000,-504.0,0.0001074,2]
[421384245,1777541438000,-860.55186502,0.00011071,2]
[421384244,1777541438000,-2640.14753071,0.00011071,2]
[421384246,1777541438000,-2872.64858853,0.00011071,2]
[421384247,1777541438000,-380.52932165,0.00011071,2]
[421384243,1777541438000,-2162.43510306,0.00011071,2]
[421384252,1777541440000,-893.23861709,0.00011071,2]
[421384253,1777541440000,-2365.275,0.00011071,2]
[421384254,1777541440000,-2511.0,0.00011071,2]
[421384259,1777541440000,-2857.40941191,0.00011071,2]
[421384257,1777541440000,-315.1908,0.00011071,2]
[421384256,1777541440000,-4362.93905821,0.00011071,2]
[421384258,1777541440000,-644.52000004,0.00011071,2]
[421384255,1777541440000,-1844.09,0.00011071,2]
[421384271,1777541443000,-1000.0,0.00011071,2]
[421384272,1777541443000,-114.62528016,0.00011071,2]
[421384273,1777541443000,-1009231.08451849,0.00011071,2]
[421384274,1777541443000,-1375.57865038,0.00011077,2]
[421384279,1777541443000,-151.0,0.00011156,2]
[421384280,1777541443000,-6737.07720456,0.00011171,2]
[421384281,1777541443000,-166.66,0.00011178,2]
[421384283,1777541443000,-2667.23149115,0.00011181,2]
[421384282,1777541443000,-367411.89894108,0.00011181,2]
[421384276,1777541443000,-503.7588243,0.00011083,2]
[421384275,1777541443000,-2500.0,0.00011081,2]
[421384277,1777541443000,-152.0,0.00011083,7]
[421384278,1777541443000,-362.35,0.00011134,2]
[421384285,1777541443000,-15254.46687693,0.00011181,2]
[421384284,1777541443000,-862.81954112,0.00011181,2]
[421384290,1777541446000,-1955.17971309,0.00011181,2]
[421384292,1777541446000,-14803.37094008,0.00011181,2]
[421384291,1777541446000,-114850.96915825,0.00011181,2]
[421384297,1777541467000,2258.64932972,0.0002,120]
[421384301,1777542133000,150.0,0.00011233,120]
[421384304,1777542566000,-500.0,9.492e-05,2]
[421384303,1777542566000,-164.68063555,9.04e-05,2]
[421384337,1777542638000,-2126.8734,0.000106,2]
[421384324,1777542638000,-200.96341406,0.0001,2]
[421384321,1777542638000,-200.96341406,0.0001,2]
[421384319,1777542638000,-3112.54542183,0.0001,2]
[421384330,1777542638000,-2000.0,0.00010095,2]
[421384328,1777542638000,-232.96,0.00010036,2]
[421384335,1777542638000,-150.0,0.00010599,2]
[421384333,1777542638000,-17562.01,0.00010367,2]
[421384339,1777542638000,-151.0,0.00010649,2]
[421384334,1777542638000,-151.0,0.00010594,2]
[421384336,1777542638000,-23685.1506,0.000106,2]
[421384331,1777542638000,-265.8074,0.00010099,2]
[421384317,1777542638000,-300.0,9.999e-05,2]
[421384315,1777542638000,-1200.0,9.999e-05,2]
[421384332,1777542638000,-200.0,0.00010128,2]
[421384342,1777542638000,-150.0,0.000108,2]
[421384348,1777542638000,-571.8668,0.00011005,2]
[421384341,1777542638000,-328.43,0.00010792,2]
[421384349,1777542638000,-2500.0,0.00011005,2]
[421384338,1777542638000,-11675.742,0.000106,2]
[421384343,1777542638000,-150.0,0.000108,2]
[421384346,1777542638000,-398.0,0.00010999,2]
[421384347,1777542638000,-1680.0,0.00010999,2]
[421384345,1777542638000,-166.66,0.00010959,2]
[421384340,1777542638000,-58125.18865351,0.000107,2]
[421384344,1777542638000,-150.0,0.000108,2]
[421384351,1777542638000,-2799.7623,0.00011071,2]
[421384350,1777542638000,-166.66,0.00011068,2]
[421384355,1777542638000,-4784.985299,0.00011105,2]
[421384356,1777542638000,-2047.56339143,0.00011105,2]
[421384353,1777542638000,-113.70030109,0.00011105,2]
[421384352,1777542638000,-1336.65883201,0.00011105,2]
[421384354,1777542638000,-266.82902056,0.00011105,2]
[421384363,1777542641000,-7818.42843277,0.00011105,2]
[421384384,1777542643000,-536.16821049,0.00011105,2]
[421384389,1777542646000,-5492.7386,0.00010267,2]
[421384445,1777542998000,150.0,0.00011233,120]
[421384449,1777543534000,4000.0,0.00030137,120]
[421384450,1777543605000,-197.39491036,0.00010088,2]
[421384458,1777543831000,-805.0,0.00010166,2]
[421384452,1777543831000,-302.60508964,0.00010088,2]
[421384454,1777543831000,-391.34847306,0.00010163,2]
[421384453,1777543831000,-948.26298398,0.00010163,2]
[421384451,1777543831000,-209.45568013,0.00010064,2]
[421384456,1777543831000,-150.0,0.00010166,2]
[421384455,1777543831000,-660.38854296,0.00010163,2]
[421384460,1777543831000,-214.95142376,0.00010167,2]
[421384457,1777543831000,-211.0,0.00010166,2]
[421384459,1777543831000,-1200.0,0.00010166,2]
[421384468,1777543831000,-262.14,0.00010171,2]
[421384462,1777543831000,-606.68562054,0.00010167,2]
[421384463,1777543831000,-1603.51757386,0.00010167,2]
[421384464,1777543831000,-917.13268707,0.00010167,2]
[421384465,1777543831000,-286.425366,0.00010167,2]
[421384467,1777543831000,-34013.99341087,0.00010167,2]
[421384466,1777543831000,-28329.30958313,0.00010167,2]
[421384469,1777543831000,-1273.99419911,0.0001045,2]
[421384472,1777543831000,-449.80508817,0.00010792,2]
[421384470,1777543831000,-11436.11,0.00010792,2]
[421384471,1777543831000,-352.50662458,0.00010792,2]
[421384461,1777543831000,-538.18293477,0.00010167,2]
[421384481,1777543837000,-150.0,0.000108,2]
[421384478,1777543837000,-71.80828725,0.00010792,2]
[421384480,1777543837000,-150.0,0.000108,2]
[421384483,1777543837000,-6567.36423377,0.00010803,2]
[421384484,1777543837000,-3015.00009,0.00010803,2]
[421384479,1777543837000,-150.0,0.000108,2]
[421384485,1777543837000,-12587.39000855,0.00010803,2]
[421384487,1777543837000,-490.0,0.00010803,2]
[421384488,1777543837000,-1583.89080692,0.00010803,2]
[421384489,1777543837000,-979.47501245,0.00010803,2]
[421384482,1777543837000,-150.0,0.000108,2]
[421384486,1777543837000,-761.42,0.00010803,2]
[421384493,1777543838000,-500.0,0.00010907,2]
[421384491,1777543838000,-165.13,0.00010811,2]
[421384490,1777543838000,-51232.53453515,0.00010803,2]
[421384492,1777543838000,-584.9881948,0.000109,2]
[421384494,1777543838000,-500.0,0.00010907,2]
[421384496,1777543838000,-250.32719022,0.00010907,2]
[421384497,1777543838000,-166.66,0.00010959,2]
[421384500,1777543838000,-155614.1808363,0.00011033,2]
[421384501,1777543838000,-6631.4483779,0.00011033,2]
[421384499,1777543838000,-245.24685544,0.00011008,2]
[421384498,1777543838000,-150.0,0.00010959,2]
[421384495,1777543838000,-500.0,0.00010907,2]
[421384503,1777543838000,-266.8290207,0.00011033,2]
[421384504,1777543838000,-8205.37739776,0.00011033,2]
[421384502,1777543838000,-12188.9303399,0.00011033,2]
[421384505,1777543838000,-1155.05164175,0.00011033,2]
[421384506,1777543838000,-380.52932165,0.00011033,2]
[421384534,1777543839000,-827.231402,0.00011033,2]
[421384535,1777543840000,-28212.94908606,0.00011033,2]
[421384536,1777543840000,-254.35801595,0.00011033,2]
[421384539,1777543840000,-513.92439638,0.00011033,2]
[421384541,1777543840000,-265.16908496,0.00011033,2]
[421384537,1777543840000,-429.22884342,0.00011033,2]
[421384540,1777543840000,-689.72524371,0.00011033,2]
[421384538,1777543840000,-669.878833,0.00011033,2]
[421384549,1777543843000,-21.93276782,0.00011033,2]
[421384548,1777543843000,-377.65200136,0.00011033,2]
[421384552,1777543846000,-9127.29266927,0.00011033,2]
[421384551,1777543846000,-3885.0,0.00011033,2]
[421384565,1777544052000,841.4176392,0.00030136,120]
[421384568,1777544871000,155.80151375,0.00026989,120]
[421384569,1777544885000,624.87969989,0.00026844,120]
[421384571,1777544886000,624.87969989,0.00026989,120]
[421384570,1777544886000,624.87969989,0.00026916,120]
[421384580,1777545031000,-400.0,0.00010067,2]
[421384576,1777545031000,-300.0,0.00010066,2]
[421384581,1777545031000,-1557.63357986,0.00010067,2]
[421384582,1777545031000,-816.11829527,0.00010067,2]
[421384573,1777545031000,-250.0,0.00010065,2]
[421384572,1777545031000,-300.0,0.00010065,2]
[421384575,1777545031000,-300.0,0.00010066,2]
[421384577,1777545031000,-1200.0,0.00010066,2]
[421384579,1777545031000,-6414.38258139,0.00010067,2]
[421384578,1777545031000,-150.0,0.00010066,2]
[421384583,1777545031000,-2808.26898585,0.00010067,2]
[421384584,1777545031000,-1565.63480144,0.00010067,2]
[421384586,1777545031000,-318.92973996,0.00010067,2]
[421384585,1777545031000,-137678.70951982,0.00010067,2]
[421384587,1777545031000,-4293.43565038,0.00010067,2]
[421384589,1777545031000,-2414.2214,0.00010067,2]
[421384588,1777545031000,-6368.32208559,0.00010067,2]
[421384574,1777545031000,-300.0,0.00010066,2]
[421384601,1777545032000,-500.0,0.00010166,2]
[421384598,1777545032000,-500.0,0.00010166,2]
[421384599,1777545032000,-500.0,0.00010166,2]
[421384597,1777545032000,-500.0,0.00010166,2]
[421384596,1777545032000,-500.0,0.00010166,2]
[421384591,1777545032000,-258.87161287,0.00010067,2]
[421384594,1777545032000,-500.0,0.00010166,2]
[421384595,1777545032000,-500.0,0.00010166,2]
[421384592,1777545032000,-33106.23664757,0.00010067,2]
[421384605,1777545032000,-500.0,0.00010166,2]
[421384590,1777545032000,-407.0,0.00010067,2]
[421384593,1777545032000,-250.0,0.00010086,2]
[421384604,1777545032000,-500.0,0.00010166,2]
[421384600,1777545032000,-500.0,0.00010166,2]
[421384614,1777545032000,-500.0,0.00010166,2]
[421384602,1777545032000,-500.0,0.00010166,2]
[421384603,1777545032000,-500.0,0.00010166,2]
[421384607,1777545032000,-500.0,0.00010166,2]
[421384609,1777545032000,-490.44579181,0.00010166,2]
[421384608,1777545032000,-500.0,0.00010166,2]
[421384611,1777545032000,-500.0,0.00010166,2]
[421384610,1777545032000,-500.0,0.00010166,2]
[421384613,1777545032000,-500.0,0.00010166,2]
[421384606,1777545032000,-500.0,0.00010166,2]
[421384615,1777545032000,-500.0,0.00010166,2]
[421384617,1777545032000,-15135.22063574,0.00010167,2]
[421384612,1777545032000,-500.0,0.00010166,2]
[421384616,1777545032000,-500.0,0.00010166,2]
[421384746,1777545049000,-2806.94146726,0.00010964,2]
[421384749,1777545049000,-380.5293217,0.00010964,2]
[421384750,1777545049000,-7758.52685221,0.00010964,2]
[421384753,1777545049000,-3168.8036433,0.00010964,2]
[421384747,1777545049000,-2659.0,0.00010964,2]
[421384748,1777545049000,-6713.57598214,0.00010964,2]
[421384756,1777545049000,-50872.97794411,0.00011033,2]
[421384745,1777545049000,-166.66,0.00010959,2]
[421384744,1777545049000,-150.0,0.000108,2]
[421384741,1777545049000,-24926.3402,9.967e-05,2]
[421384743,1777545049000,-2000.0,0.00010485,2]
[421384742,1777545049000,-186.36,0.00010483,2]
[421384740,1777545049000,-10000.01,9.967e-05,2]
[421384751,1777545049000,-380.52932165,0.00010964,2]
[421384752,1777545049000,-25225.08565734,0.00010964,2]
[421384761,1777545049000,-751.77973,0.0001107,2]
[421384755,1777545049000,-294.07952983,0.00011032,2]
[421384754,1777545049000,-1923.5368135,0.00010964,2]
[421384768,1777545049000,-151.0,0.00011072,2]
[421384767,1777545049000,-151.0,0.00011072,2]
[421384765,1777545049000,-250.0,0.00011072,2]
[421384766,1777545049000,-500.0,0.00011072,2]
[421384769,1777545049000,-151.0,0.00011072,2]
[421384770,1777545049000,-623.0,0.00011072,2]
[421384763,1777545049000,-751.77974,0.0001107,2]
[421384762,1777545049000,-751.77973,0.0001107,2]
[421384759,1777545049000,-751.77973,0.0001107,2]
[421384760,1777545049000,-751.77973,0.0001107,2]
[421384757,1777545049000,-166.66,0.00011068,2]
[421384758,1777545049000,-751.77973,0.0001107,2]
[421384764,1777545049000,-300.0,0.00011072,2]
[421384792,1777545050000,-166.66,0.00011288,2]
[421384788,1777545050000,-152.0,0.00011253,7]
[421384790,1777545050000,-165.13,0.00011258,2]
[421384791,1777545050000,-184.34186812,0.00011287,2]
[421384793,1777545050000,-500.0,0.00011345,2]